Cogmind - Beta 16 @@@ ROGUE MODE // 2025.12.14 @ 17:37:46 Player: Lauriboy Result: Self-destructed Performance ------------- Evolutions (2) 1000 Regions Visited (4) 800 Robots Destroyed (39) 195 Value Destroyed (1041) 1041 Prototype IDs (0) 0 Alien Tech Used (0) 0 Bonus (0) 0 TOTAL SCORE: 3036 Bonus ------- None Cogmind --------- Core Integrity 394/550 Matter 280/300 Energy 211/265 System Corruption 0% Temperature Cool (0) Movement Hovering (180) Ox2 Location -8/Materials Parts ------- > --- POWER (1) -------- Improved Ion Engine > --- PROPULSION (4) --- Airjet > --- UTILITY (3) ------ Medium Storage Unit > --- WEAPON (3) ------- (None) > --- INVENTORY (10) --- Light Ion Engine Aluminum Leg Aluminum Leg Wheel Compact Wheel Heat Sink Large Storage Unit Compact Battery (200) Improved Terrain Scanner Field Recycling Unit (0) Peak State ------------ > --- POWER ------------ Improved Ion Engine > --- PROPULSION ------- Aluminum Leg Aluminum Leg Aluminum Leg > --- UTILITY ---------- Cooling System Medium Storage Unit Visual Processing Unit > --- WEAPON ----------- Shock Rifle Shock Rifle Shock Rifle > --- INVENTORY -------- Light Ion Engine Wheel Compact Wheel Heat Sink Small Storage Unit Compact Battery Medium Matter Pod Field Recycling Unit [Rating: 20] Favorites ----------- Power Light Ion Engine Engine Light Ion Engine Propulsion Aluminum Leg Leg Aluminum Leg Wheel Wheel Hover Unit Airjet Utility Medium Storage Unit Device Improved Heat Sink Storage Medium Storage Unit Processor Visual Processing Unit Protection Medium Armor Plating Weapon Shock Rifle Energy Gun Shock Rifle Ballistic Gun Light Assault Rifle Build | -11 -10 -9 -9 -8 ------- Run | Yrd Mat Mat Min Mat Slots Evolved 4 | . . 2 . 2 Power . | . . . . . Propulsion 2 | . . 2 . . Utility 1 | . . . . 1 Weapon 1 | . . . . 1 Parts Attached 37 | 6 2 23 . 6 Power 6 | 1 1 3 . 1 Engine 6 | 1 1 3 . 1 Core . | . . . . . Reactor . | . . . . . Propulsion 13 | 2 . 9 . 2 Treads . | . . . . . Leg 9 | 2 . 7 . . Wheel 2 | . . 2 . . Hover 2 | . . . . 2 Flight . | . . . . . Utility 7 | 1 1 3 . 2 Device 2 | . 1 . . 1 Storage 3 | 1 . 1 . 1 Processor 1 | . . 1 . . Hackware . | . . . . . Protection 1 | . . 1 . . Artifact . | . . . . . Weapon 11 | 2 . 8 . 1 Energy Gun 5 | 2 . 2 . 1 Energy Cannon . | . . . . . Ballistic Gun 6 | . . 6 . . Ballistic Cannon . | . . . . . Launcher . | . . . . . Special Weapon . | . . . . . Impact Weapon . | . . . . . Slashing Weapon . | . . . . . Piercing Weapon . | . . . . . Special Melee Weapon . | . . . . . Unidentified Prototypes . | . . . . . Parts Lost 15 | . . 10 1 4 Power 2 | . . 1 1 . Propulsion 7 | . . 6 . 1 Utility 1 | . . 1 . . Weapon 5 | . . 2 . 3 Highest Loss Streak 3 | . . 3 1 2 To Critical Strikes . | . . . . . Average Backups 8 | 3 7 8 10 8 Power 1 | . 1 1 1 . Propulsion 2 | 1 4 2 2 2 Utility 2 | . . 2 6 5 Weapon 1 | . 1 1 1 . Tool/Special . | . . . . . Unused Backups 7 | . . 3 . 4 Power . | . . . . . Propulsion 2 | . . 2 . . Utility 5 | . . 1 . 4 Weapon . | . . . . . Tool/Special . | . . . . . Average Slot Usage (%) 85 | . 92 84 84 83 Engine 10 | . 14 10 7 9 Leg 27 | . 28 28 33 25 Wheel 1 | . . 2 . . Device 6 | . 7 7 . 8 Storage 11 | . 14 11 11 9 Processor 3 | . . 2 11 8 Energy Gun 11 | . 28 4 22 22 Ballistic Gun 11 | . . 17 . . Peak Build Rating 20 | 6 9 15 14 20 Average Rating 11 | 4 7 10 13 18 On Entrance 8 | . 6 9 14 13 Avg Prop Armor Cover (%) 8 | . . 8 . . Naked Turns . | . . . . . Heaviest Build 28 | 11 14 24 19 28 Greatest Support 40 | 20 20 40 30 30 Greatest Overweight (x) 3 | 3 . 1 . 2 Average Overweight (x) . | . . . . . Largest Inventory Capacity 15 | 8 8 10 10 15 Average Capacity 9 | 7 8 9 10 10 Most Carried 10 | 6 8 10 10 10 Average Carried 8 | 3 7 8 10 8 Final Capacity 10 | 8 8 10 10 10 Final Carried 10 | 6 8 10 10 10 Class Distribution -------------------- 57% | Mutant 29% | Scavenger-Mutant 8% | Scavenger-Skirmisher 4% | Skirmisher Dominant Class ---------------- Mutant | -10/Materials Mutant | -9/Materials Mutant | -9/Mines Scavenger-Skirmisher | -8/Materials Resources | -11 -10 -9 -9 -8 ----------- Run | Yrd Mat Mat Min Mat Matter Collected 966 | 188 88 545 25 120 Remotely . | . . . . . Salvage Created 1401 | . 99 895 . 407 Parts 83 | . 4 60 . 19 Haulers Intercepted . | . . . . . Recyclers Shooed 1 | . . 1 . . Parts Field Recycled . | . . . . . Retrieved Matter . | . . . . . Parts Self-Destructed . | . . . . . Prevented . | . . . . . Parts Restored . | . . . . . Kills | -11 -10 -9 -9 -8 ------- Run | Yrd Mat Mat Min Mat Combat Hostiles Destroyed 33 | . 2 24 . 7 Guns 31 | . 2 23 . 6 Classes Destroyed 7 | . 1 6 . . Worker 3 | . . 3 . . Builder 1 | . . 1 . . Recycler 1 | . . 1 . . Watcher 1 | . . 1 . . Swarmer 12 | . . 12 . . Grunt 15 | . 2 8 . 5 Sentry 6 | . . 4 . 2 Best Kill Streak 9 | . 1 9 . 5 Combat Bots Only 5 | . 1 5 . 5 Max Kills in Single Turn 2 | . 1 2 . 1 Gunslinging . | . . . . . Exploded . | . . . . . Melee . | . . . . . Uniques/NPCs Destroyed . | . . . . . Combat | -11 -10 -9 -9 -8 -------- Run | Yrd Mat Mat Min Mat Hostile Shots Fired 248 | . 11 161 3 73 Missed 58 | . 2 29 2 25 Hits 190 | . 9 132 1 48 Projectile 190 | . 9 132 1 48 Critical Strikes 5 | . . 3 . 2 Damage Taken 2221 | . 113 1483 17 608 Core 425 | . 37 232 . 156 Absorbed by Shields . | . . . . . Core Remaining (%) 75 | 100 85 . 42 . Volleys Fired 123 | . 8 98 . 17 Largest 3 | . 2 2 . 3 Hottest 150 | . 90 100 . 150 Shots Fired 245 | . 16 193 . 36 Gun 245 | . 16 193 . 36 Cannon . | . . . . . Launcher . | . . . . . Special . | . . . . . Kinetic 161 | . . 161 . . Thermal 38 | . 16 22 . . Explosive . | . . . . . Electromagnetic 46 | . . 10 . 36 Robot Hit Streak 17 | . 6 17 . 11 Robot Miss Streak 4 | . 2 4 . 2 Penetration Max . | . . . . . Secondary Targets 3 | . . 2 . 1 Max Gunslinging Chain 1 | . . 1 . 1 Shots Hit Robots 162 | . 10 125 . 27 Core Hits 62 | . 5 45 . 12 Critical Kills . | . . . . . Critical Parts Destroyed . | . . . . . Critical Strikes 2 | . 1 1 . . Burn 2 | . 1 1 . . Melee Attacks . | . . . . . Impact . | . . . . . Slashing . | . . . . . Piercing . | . . . . . Sneak Attacks . | . . . . . Combat Hostiles . | . . . . . Follow-up Attacks . | . . . . . Damage Inflicted 2111 | . 120 1526 . 465 Guns 2058 | . 120 1473 . 465 Cannons . | . . . . . Explosions 53 | . . 53 . . Melee . | . . . . . Ramming . | . . . . . Kinetic 1207 | . . 1207 . . Thermal 306 | . 120 186 . . Explosive . | . . . . . Electromagnetic 598 | . . 133 . 465 Impact . | . . . . . Slashing . | . . . . . Piercing . | . . . . . Highest Corruption 3 | . 3 . . . Average Corruption 2 | . 2 . . . Corruption Purged . | . . . . . Corruption Blocked . | . . . . . Effects 3 | . 3 . . . Matter Fused 2 | . 2 . . . Data Loss (major) 1 | . 1 . . . Overload Shots . | . . . . . Overflow Damage 1 | . . 1 . . Projectiles . | . . . . . Explosions 1 | . . 1 . . Melee . | . . . . . Knockbacks . | . . . . . Impact . | . . . . . Kinetic . | . . . . . Secondary . | . . . . . Self-Inflicted Damage 30 | . . 30 . . Shots 1 | . . 1 . . Rammed . | . . . . . Targets Rammed . | . . . . . Kicked . | . . . . . Crushed . | . . . . . Highest Temperature 174 | . 156 174 . 43 Average Temperature 40 | . 77 41 . 15 Received Heat Transfer 723 | . 66 450 9 198 Siege Activations . | . . . . . Martial Activations . | . . . . . Shielding Activations . | . . . . . Robots Disrupted . | . . . . . Combat Hostiles . | . . . . . Robots Corrupted 2 | . . 1 . 1 Combat Hostiles 2 | . . 1 . 1 Parts Fried 3 | . . . . 3 Impact Corruptions . | . . . . . Robots Melted . | . . . . . Combat Hostiles . | . . . . . Parts Melted . | . . . . . Heat Transferred 882 | . 384 498 . . Parts Sabotaged . | . . . . . Parts Stolen . | . . . . . Parts Stripped . | . . . . . Power Chain Reactions 1 | . . 1 . . Alert | -11 -10 -9 -9 -8 ------- Run | Yrd Mat Mat Min Mat Maximum Alert Level . | . . . . . Low Security (%) 100 | 100 100 100 100 100 Level 1 . | . . . . . Level 2 . | . . . . . Level 3 . | . . . . . Level 4 . | . . . . . Level 5 . | . . . . . High Security . | . . . . . Max Security . | . . . . . Peak Influence 187 | . 45 187 69 80 Initial 69 | . . 1 69 11 Average 62 | . 14 86 52 19 Influence Increases 933 | . 65 683 . 185 Destroy 0b10 Robot/C 660 | . 40 480 . 140 Destroy 0b10 Robot/NC 30 | . . 30 . . Destroy Leader 152 | . 10 112 . 30 Successful Hack 11 | . . 11 . . Disable Machine 30 | . . 30 . . Destroy Structure 5 | . . 5 . . Lose Combat Pursuer 45 | . 15 15 . 15 Influence Decreases 893 | . 60 509 150 174 Entered New Map 132 | . . 4 110 18 Time Decay 631 | . 60 425 30 116 Lost Part 130 | . . 80 10 40 Squads Dispatched 6 | . 1 3 . 2 Investigation 3 | . 1 1 . 1 Extermination . | . . . . . Reinforcement 3 | . . 2 . 1 Assault . | . . . . . Garrison . | . . . . . Intercept . | . . . . . Searches Triggered . | . . . . . Construction Impeded . | . . . . . Haulers Reinforced . | . . . . . Active Scanning Responses . | . . . . . Cargo Convoy Interrupts . | . . . . . Stealth | -11 -10 -9 -9 -8 --------- Run | Yrd Mat Mat Min Mat Distress Signals 5 | . . 2 1 2 Communications Jammed . | . . . . . Distress Signals . | . . . . . Times Spotted 61 | . 5 36 3 17 Peak Tracking Total 6 | . 3 4 3 6 Tactical Retreats 3 | . 1 1 . 1 Traps | -11 -10 -9 -9 -8 ------- Run | Yrd Mat Mat Min Mat Traps Triggered 4 | . 3 1 . . Indirectly . | . . . . . Trap Hack Attempts . | . . . . . Triggered . | . . . . . Disarmed . | . . . . . Reprogrammed . | . . . . . Reused . | . . . . . Traps Extracted . | . . . . . Installed . | . . . . . Triggered . | . . . . . Machines | -11 -10 -9 -9 -8 ---------- Run | Yrd Mat Mat Min Mat Machines Disabled 2 | . . 2 . . Max in Single Turn 1 | . . 1 . . Machines Repaired . | . . . . . Machines Dismantled . | . . . . . Machines Sabotaged . | . . . . . Overloaded Fab Kills . | . . . . . Hacking | -11 -10 -9 -9 -8 --------- Run | Yrd Mat Mat Min Mat Machines Accessed 5 | . . 3 . 2 Terminals 4 | . . 3 . 1 Fabricators . | . . . . . Repair Stations . | . . . . . Recycling Units . | . . . . . Scanalyzers . | . . . . . Garrison Access 1 | . . . . 1 Total Hacks 13 | . . 9 . 4 Successful 5 | . . 4 . 1 Failed 8 | . . 5 . 3 Catastrophic 1 | . . . . 1 Database Lockouts . | . . . . . Manual 3 | . . 3 . . Terminals 11 | . . 9 . 2 Fabricators . | . . . . . Repair Stations . | . . . . . Recycling Units . | . . . . . Scanalyzers . | . . . . . Garrison Access 2 | . . . . 2 Terminal Hacks 5 | . . 4 . 1 Record 2 | . . 2 . . Branch Access Points 1 | . . 1 . . Recall Investigation 1 | . . . . 1 Zone Layout 1 | . . 1 . . Fabricator Hacks . | . . . . . Repair Station Hacks . | . . . . . Recycling Unit Hacks . | . . . . . Scanalyzer . | . . . . . Garrison Access Hacks . | . . . . . Unauthorized Hacks . | . . . . . Terminals . | . . . . . Fabricators . | . . . . . Repair Stations . | . . . . . Recycling Units . | . . . . . Scanalyzers . | . . . . . Garrison Access . | . . . . . Data Cores Recovered . | . . . . . Used . | . . . . . Hacking Detections 3 | . . 2 . 1 Full Trace Events 1 | . . . . 1 Feedback Events . | . . . . . Feedback Blocked . | . . . . . Robot Schematics Acquired . | . . . . . Robots Built . | . . . . . Authchips . | . . . . . Time . | . . . . . Total Robot Build Rating . | . . . . . Part Schematics Acquired . | . . . . . Parts Built . | . . . . . Authchips . | . . . . . Time . | . . . . . Total Part Build Rating . | . . . . . Part Studies Acquired . | . . . . . Parts Repaired . | . . . . . Time . | . . . . . Parts Recycled . | . . . . . Recycled Matter . | . . . . . Retrieved Matter . | . . . . . Retrieved Components . | . . . . . Parts Scanalyzed . | . . . . . Part Schematics Acquired . | . . . . . Parts Damaged . | . . . . . Bothacking | -11 -10 -9 -9 -8 ------------ Run | Yrd Mat Mat Min Mat Used RIF Installer . | . . . . . Robots Hacked . | . . . . . Non-combat . | . . . . . Combat . | . . . . . Robot Hacks Applied . | . . . . . Relay Couplers Released . | . . . . . Fabnet Peak Effective % . | . . . . . Robots Rewired . | . . . . . Allies Hacked . | . . . . . Hacks Repelled . | . . . . . Allies | -11 -10 -9 -9 -8 -------- Run | Yrd Mat Mat Min Mat Total Allies . | . . . . . Largest Group . | . . . . . Highest-Rated Group . | . . . . . Highest-Rated Ally . | . . . . . Total Orders . | . . . . . Ally Attacks . | . . . . . Total Damage . | . . . . . Kills . | . . . . . Allies Corrupted . | . . . . . Allies Melted . | . . . . . Intel | -11 -10 -9 -9 -8 ------- Run | Yrd Mat Mat Min Mat Active Infowar (turns) 657 | . . 277 70 310 Optics 657 | . . 277 70 310 Robot Analysis Total . | . . . . . Derelict Logs Recovered . | . . . . . Drone Launches . | . . . . . Drone Recoveries . | . . . . . Exploration | -11 -10 -9 -9 -8 ------------- Run | Yrd Mat Mat Min Mat Turns Passed 1902 | 76 209 1223 70 324 Spaces Moved 892 | 49 133 513 50 147 Core 13 | 13 . . . . Treads . | . . . . . Legs 795 | 36 133 439 50 137 Wheels 74 | . . 74 . . Hover 10 | . . . . 10 Flight . | . . . . . Fastest Speed 50 | 50 120 90 120 116 Average Speed 118 | 126 120 116 120 122 Slowest Speed 200 | 200 120 190 120 190 Overloaded Moves . | . . . . . Propulsion Burnouts . | . . . . . Robots Hopped . | . . . . . Potential Cave-ins . | . . . . . Cave-ins Triggered . | . . . . . Exploration Rate (%) 21 | 4 26 45 18 16 Regions Visited 4 Branch Regions 1 Pre-discovered Areas . | . . . . . Known Exits Taken 1 | . . 1 . . Unknown Exits Taken 3 | 1 1 . 1 . Scrap Searched . | . . . . . Spaces Dug . | . . . . . Terrain Destroyed 2 | . . 2 . . Melee . | . . . . . Projectile . | . . . . . AOE 2 | . . 2 . . Terrain Rammed . | . . . . . Walls Destroyed . | . . . . . Machines Disabled . | . . . . . Actions | -11 -10 -9 -9 -8 --------- Run | Yrd Mat Mat Min Mat Total 1519 | 60 165 973 60 261 Wait 428 | . 22 317 11 78 Move 888 | 48 132 512 49 147 Hop . | . . . . . Pick Up 16 | 6 1 7 . 2 Fast Attach 18 | 6 1 10 . 1 Attach 10 | . . 6 . 4 Detach 5 | . . 2 . 3 Swap 15 | . 1 9 . 5 Drop 16 | . . 12 . 4 Fire 123 | . 8 98 . 17 Melee . | . . . . . Ram . | . . . . . Kick . | . . . . . Crush . | . . . . . Escape Stasis . | . . . . . Rewire . | . . . . . Trap . | . . . . . Miscellaneous . | . . . . . Route ------- -11/Scrapyard -10/Materials -9/Materials (discovered 2 exits: *Min x2) -9/Mines -8/Materials History --------- Turn | Location | Event 17 | -11/Scrapyard | Discovered new exit (range 16) 77 | -11/Scrapyard | Entered Materials 261 | -10/Materials | Discovered new exit (range 3) 286 | -10/Materials | Entered another Materials area 286 | -9/Materials | Evolved 2 slots: Propulsion x2 308 | -9/Materials | Build established: Mutant 1188 | -9/Materials | Lost 3 parts (2n1u) 1253 | -9/Materials | Core integrity fell below 50% 1336 | -9/Materials | Identified exit to Mines 1509 | -9/Materials | Entered Mines 1510 | -9/Mines | Assembled infested the area 1512 | -9/Mines | Met a Derelict bent on vengeance 1568 | -9/Mines | Discovered new exit (range 10) 1579 | -9/Mines | Entered Materials 1579 | -8/Materials | Evolved 2 slots: Utility x1, Weapon x1 1903 | -8/Materials | Self-destructed Last Messages --------------- Acquired Airjet. K-01 Serf collects debris. Slug penetrates Wall. K-01 Serf collects debris. Slug penetrates Atomic Centrifuge. Shock Rifle destroyed. K-01 Serf collects debris. Slug penetrates Wall. C-30 ARC bursts open, deploying its payload. S-10 Pest unfolds itself. Dropped Aluminum Leg. Dropped Cooling System. Discarded Visual Processing Unit. K-01 Serf collects debris. Slug penetrates Wall. K-01 Serf collects debris. Airjet destroyed. K-01 Serf collects debris. Slug penetrates K-01 Serf. K-01 Serf destroyed. Map ----- +----------------------------------------------------+ | ???????????????????????????????????????# """ # | | ???????????????????????????????????????# """ # | | ???????????????????????????????????????# """ # | | ???????????????????????????????????????# + | | ???????????????????????????????????????# # | | ????????????????????????????????????########### | | ????????????????????????????????????# [ # | | ????????????????????????????????????# # | | ????????????????????????????????????# "T" =[ # | | ??????????????????????? ???????????# !! =[ # | | ??????????????????????? ?##############+##+### | | ?????????????????????#? ## #### | | ????????????###?#+### # + = | | ????????????? ^ # #### | | ??????????? ? + """ #??# #####+# | | ???????????? # """"" #??# ## | | ???????????? # """"" #??# ## | | ????????# ?""" """ """ # """"" #??# ## """" | | ????????? """ """ ^""" # """ #??# ## """" | | ????????? """^ """ r""" ###?#######??# ## """" | | ????????# T#??????????## ## | | ????????# #???????????# # | | ????????# """ "" h #???????????# # " " | | ????????# """ "" #???????????# + "G" | | ????????# """ "" ############# # " | | ??####+## s [ @ [ # | | ?? "%" [ sa [ % ######################## | | ????????# s% ==[#??????????????????????? | | ????????# != =%%#??????????????????????? | | ????????###" "####### [[=##?????????????????????? | | ??????????#"????????# =%!#?????????????????????? | | ????????????????????#! !#?????????????????????? | | ????????????????????##!! !##?????????????????????? | | ?????????????????????######??????????????????????? | | ?????????????????????????????????????????????????? | | ?????????????????????????????????????????????????? | | ?????????????????????????????????????????????????? | | ?????????????????????????????????????????????????? | | ?????????????????????????????????????????????????? | | ?????????????????????????????????????????????????? | | ?????????????????????????????????????????????????? | | ?????????????????????????????????????????????????? | | ?????????????????????????????????????????????????? | | ?????????????????????????????????????????????????? | | ?????????????????????????????????????????????????? | | ?????????????????????????????????????????????????? | | ?????????????????????????????????????????????????? | | ?????????????????????????????????????????????????? | | ?????????????????????????????????????????????????? | | ?????????????????????????????????????????????????? | +----------------------------------------------------+ Best States ------------- Heat Dissipation 53 Energy Generation 12 Energy Capacity 265 Matter Stores 300 Matter Capacity 300 Sight Range 18 Terrain Scan Density 10 Armor Coverage 225 Evasion (%) 55 Item Schematics ----------------- None Robot Schematics ------------------ None Fabricated ------------ Nothing Repaired ---------- Nothing Studied --------- None Alien Tech Used ----------------- None Achievements -------------- GoHome() Challenges ------------ None Game ------ Seed TargetingNullShearcannon Manual? 0 Play Time 00:47:25 Cumulative 23.9 hours Start 2025.12.14 @ 16:32:31 End 2025.12.14 @ 17:37:46 Sessions 1 Manual Loads 0 Difficulty Rogue Special Mode None Game No. 29 Rogue 29 Adventurer 0 Explorer 0 Win Type - Total 0 Types 0/0/0/0/0/0/0/0/0/0 Lore% 12 Gallery% 18 Achievement% 16 Wizard Run 0 Options --------- Layout 1 ASCII 0 Keyboard 0 Movement Vi Keybinds 0 Fullscreen 1 Font 36/Smallcaps Map View 50x35 Zoom Use 0% Tactical HUD 0 Map Filters NONE Filters NONE Steam 1 RUN: 9bb4e293-9645-46f9-86ec-10fc8c488275